[Event "29th Bosnjaci Open 2025"]
[Site "Bosnjaci"]
[Date "2025.01.04"]
[Round "3.18"]
[White "Jusup, Matej"]
[Black "Mezak, Damir"]
[Result "1-0"]
[ECO "B13"]
[WhiteElo "2238"]
[BlackElo "1818"]
[Annotator "TA"]
[PlyCount "69"]
[EventDate "2025.01.04"]
[EventType "swiss"]
[EventCountry "CRO"]
[SourceTitle "playchess.com"]
[Source "ChessBase"]
[SourceQuality "1"]
[TimeControl "5400+30"]

{[%evp 18,69,50,50,65,63,88,87,104,113,113,104,186,172,201,197,195,189,204,194,231,232,220,218,219,221,255,239,223,214,294,284,271,260,315,339,517,503,522,520,507,506,608,616,819,780,1189,867,1508,1515,5365,4978,2369,2336]} 1. e4 {[%emt 0:00:07]} c6 {[%emt 0:00:10]} 2. d4 {[%emt 0:00:04]} d5 {[%emt 0:00:13]} 3. exd5 {[%emt 0:00:03]} cxd5 {[%emt 0:00:12]} 4. Bd3 {[%emt 0:00:04]} Nc6 {[%emt 0:00:24]} 5. c3 {[%emt 0:00:05]} Nf6 {[%emt 0:00:35]} 6. Bf4 {[%emt 0:00:06]} e6 {[%emt 0:00:48]} 7. Nf3 {[%emt 0:00:34]} Bd6 {[%emt 0:00:45]} 8. Bxd6 {[%emt 0:01:01]} Qxd6 {[%emt 0:00:10]} 9. O-O {[%emt 0:00:15]} O-O {[%emt 0:00:13]} 10. Re1 {[%emt 0:00:16][%cal Bf1e1,Be1e3,Be3e5][%mdl 32]} Ne7 {[%emt 0:01:11]} 11. Ne5 {[%emt 0:00:27]} Ng6 {[%emt 0:00:13]} 12. Nd2 {[%emt 0:03:54]} Nd7 {[%emt 0:03:15][%cal Rd7e5]} 13. Bxg6 {[%emt 0:06:02]} hxg6 {[%emt 0:01:09]} 14. Qg4 {[%emt 0:02:19] White is more active.} Qe7 {[%emt 0:03:00]} (14... Qb6 $16) 15. Re3 $18 {[%emt 0:02:18]} Nxe5 {[%emt 0:01:41]} 16. dxe5 {[%emt 0:00:24]} f6 {[%emt 0:05:22]} 17. Qxg6 {[%emt 0:00:53]} fxe5 {[%emt 0:00:08]} 18. Rxe5 {[%emt 0:01:42]} Rf6 {[%emt 0:00:10]} 19. Qg3 {[%emt 0:00:36]} Bd7 {[%emt 0:00:15]} 20. Rae1 {[%emt 0:00:31][%cal Ba1e1,Be1e2,Be2e5,Be5g5][%mdl 32]} Raf8 {[%emt 0:00:11]} 21. Nf3 {[%emt 0:00:52]} Qf7 {[%emt 0:02:08]} 22. h4 {[%emt 0:04:45] Black is weak on the dark squares} Rf5 {[%emt 0:06:39]} 23. R1e2 {[%emt 0:10:53]} Qh5 {[%emt 0:04:23]} 24. Nd4 {[%emt 0:03:26][%csl LRe6,LRf5]} Rxe5 {[%emt 0:01:33]} 25. Rxe5 {[%emt 0:00:11]} Qh6 {[%emt 0:01:48]} 26. Rg5 {[%emt 0:05:37]} Rf6 {[%emt 0:03:43]} (26... Qh7 {might work better.} 27. h5 Qb1+ 28. Kh2 Qh7) 27. Nf3 {[%emt 0:06:58]} Be8 {[%emt 0:03:36]} 28. Qb8 {[%emt 0:04:00][%csl LRa7,LRb7,LRe8]} Rf8 {[%emt 0:00:10]} 29. Qxb7 {[%emt 0:01:47]} Bh5 {[%emt 0:00:42]} 30. Ne5 {[%emt 0:05:03]} Be8 {[%emt 0:01:49]} 31. Qxa7 {[%emt 0:01:39]} Bf7 {[%emt 0:01:20]} 32. Qd4 {[%emt 0:00:42] and Ng4 should not be overlooked} Be8 {[%emt 0:01:07]} 33. Ng4 {[%emt 0:01:10]} Qh8 {[%emt 0:01:10]} 34. Nf6+ {[%emt 0:06:10]} Rxf6 {[%emt 0:00:09]} 35. Qxf6 {[%emt 0:00:15]} 1-0

[Event "29th Bosnjaci Open 2025"]
[Site "Bosnjaci"]
[Date "2025.01.04"]
[Round "3.19"]
[White "Neferanovic, Ivan"]
[Black "Besedes, Danilo"]
[Result "0-1"]
[ECO "D02"]
[WhiteElo "1917"]
[BlackElo "2239"]
[Annotator "TA"]
[PlyCount "70"]
[EventDate "2025.01.04"]
[EventType "swiss"]
[EventCountry "CRO"]
[SourceTitle "playchess.com"]
[Source "ChessBase"]
[SourceQuality "1"]
[TimeControl "5400+30"]

{[%evp 9,70,4,11,-13,30,26,31,5,50,0,0,0,0,-2,-11,-1,-8,-12,-12,-16,-2,-33,-36,-126,-144,-394,-253,-237,-204,-295,-302,-366,-362,-332,-346,-393,-387,-502,-386,-375,-364,-367,-363,-334,-353,-340,-351,-488,-345,-507,-456,-457,-452,-464,-436,-465,-369,-379,-367,-29963,-29962,-29980,-5422]} 1. d4 {[%emt 0:00:02]} d5 {[%emt 0:00:08]} 2. Nc3 {[%emt 0:00:02]} Bf5 {[%emt 0:00:08]} 3. Bf4 {[%emt 0:00:02]} Nf6 {[%emt 0:00:13]} 4. e3 {[%emt 0:00:02]} e6 {[%emt 0:00:10]} 5. Nf3 {[%emt 0:00:06]} Bb4 {[%emt 0:01:38]} 6. a3 {[%emt 0:01:17]} Bd6 {[%emt 0:02:50]} 7. Ne5 {[%emt 0:00:14]} Nfd7 {[%emt 0:00:11]} 8. Bd3 {[%emt 0:00:55] White is slightly better.} Bg6 {[%emt 0:01:09]} 9. Qg4 {[%emt 0:04:50]} (9. Nxg6 $14 hxg6 10. Bxd6 cxd6 11. Qg4) 9... Bxe5 $11 {[%emt 0:03:54]} 10. Bxe5 {[%emt 0:00:12]} Nxe5 {[%emt 0:00:55]} 11. dxe5 {[%emt 0:00:01]} Nd7 {[%emt 0:00:19]} 12. f4 {[%emt 0:01:00]} Qe7 {[%emt 0:07:00]} 13. O-O {[%emt 0:04:34]} O-O-O {[%emt 0:02:57]} 14. b4 {[%emt 0:01:16]} f6 {[%emt 0:02:30]} 15. Bxg6 {[%emt 0:06:32]} hxg6 {[%emt 0:00:28]} 16. exf6 {[%emt 0:01:14]} (16. Qxg6 $15 fxe5 17. f5) 16... gxf6 $17 {[%emt 0:03:01]} 17. Qxg6 $2 {[%emt 0:03:05] This costs White the game.} (17. Nb5 $17) 17... Rdg8 {[%emt 0:00:23][%cal Bd8g8,Bg8g3,Bg3h3][%mdl 32]} 18. Qd3 {[%emt 0:00:02]} Qg7 {[%emt 0:00:33]} 19. Rf2 {[%emt 0:01:57]} (19. Qd2 {might work better.}) 19... Qh6 $19 {[%emt 0:01:24]} ({Much less strong is} 19... f5 20. Qd4 Qh7 21. Kf1 Qxh2 22. Rd1) 20. g3 {[%emt 0:02:28] [#]} Rxg3+ $3 {[%emt 0:00:14][%mdl 512]} 21. Kf1 {[%emt 0:00:01]} Rh3 {[%emt 0:03:19]} 22. Ke2 {[%emt 0:01:32]} Nb6 {[%emt 0:02:14]} ({But not} 22... Rxh2 23. Raf1 $19) 23. Rh1 {[%emt 0:03:01]} Nc4 {[%emt 0:03:32]} 24. Nd1 {[%emt 0:00:11]} Qh5+ {[%emt 0:01:13]} 25. Ke1 {[%emt 0:00:42] [#]} Nxe3 $1 {[%emt 0:09:04][%mdl 512]} 26. Nxe3 {[%emt 0:06:39] [#]} d4 $1 {[%emt 0:00:04][%mdl 512]} 27. Qxd4 {[%emt 0:01:40]} Rd8 {[%emt 0:00:08]} 28. Qxd8+ {[%emt 0:03:44]} (28. Qxa7 $2 {gets mated.} Rxe3+ 29. Kf1 Qd1+ 30. Kg2 Rg8#) 28... Kxd8 {[%emt 0:00:03]} 29. Rd2+ {[%emt 0:00:34]} (29. Kd2 {is the only way for White.}) 29... Ke7 {[%emt 0:00:55]} 30. Re2 {[%emt 0:01:43]} Kf7 {[%emt 0:00:56]} 31. Kd2 {[%emt 0:00:59]} Qh6 {[%emt 0:01:06]} 32. Rf2 {[%emt 0:01:19]} Qh4 {[%emt 0:02:44]} 33. Ke2 {[%emt 0:01:24]} e5 {[%emt 0:00:06]} 34. fxe5 {[%emt 0:02:14]} (34. Rhf1 $19) 34... Qe4 {[%emt 0:00:17][%csl LRe3,LRe5,LRh1]} 35. Rxf6+ {[%emt 0:00:02]} Ke7 {[%emt 0:00:19] Weighted Error Value: White=0.53/Black=0.23 (precise) .  Loses game:     	White=1     	---        Mistake:       	White=5     	---        Inaccurate:     	White=2     	Black=3      OK:         	White=7     	Black=8      Best:        	White=2     	Black=2      Brilliant:      	---       	Black=2} 0-1

[Event "29th Bosnjaci Open 2025"]
[Site "Bosnjaci"]
[Date "2025.01.04"]
[Round "3.20"]
[White "Milanovic, Josip"]
[Black "Sipic, Hrvoje"]
[Result "0-1"]
[ECO "D02"]
[WhiteElo "1917"]
[BlackElo "2213"]
[Annotator "TA"]
[PlyCount "92"]
[EventDate "2025.01.04"]
[EventType "swiss"]
[EventCountry "CRO"]
[SourceTitle "playchess.com"]
[Source "ChessBase"]
[SourceQuality "1"]
[TimeControl "5400+30"]

{[%evp 9,92,2,25,-18,-33,-25,-28,-23,-21,-34,23,-4,-4,-25,23,20,29,0,25,29,39,0,48,0,4,-108,-104,-96,-97,-104,-101,-104,-89,-94,-96,-133,-72,-73,-73,-81,-73,-73,-73,-83,-87,-116,-54,-79,-14,-19,-16,-15,-25,-37,0,-444,-465,-469,-471,-426,-482,-460,-455,-495,-492,-650,-650,-1464,-1501,-1491,-1391,-1465,-1453,-1379,-1292,-1427,-1330,-29955,-29954,-12507,-9574,-29980,-29981,-29980,-29981]} 1. d4 {[%emt 0:00:04]} Nf6 {[%emt 0:00:17]} 2. Nf3 {[%emt 0:00:20]} c5 {[%emt 0:01:47]} 3. c3 {[%emt 0:00:12]} d5 {[%emt 0:00:12]} 4. Bf4 {[%emt 0:00:28]} Nc6 {[%emt 0:00:11]} 5. e3 {[%emt 0:00:08]} Nh5 {[%emt 0:02:16]} 6. Bg5 {[%emt 0:01:37]} h6 {[%emt 0:00:41]} 7. Bh4 {[%emt 0:00:58]} g5 {[%emt 0:00:24]} 8. Bg3 {[%emt 0:00:08]} Nxg3 {[%emt 0:00:27]} 9. hxg3 {[%emt 0:00:02]} Bg7 {[%emt 0:00:17]} ({Black should play} 9... g4 $15 10. Nfd2 Qb6) 10. Nbd2 {[%emt 0:01:03]} Qb6 {[%emt 0:02:52]} 11. Qb3 {[%emt 0:00:43]} Qxb3 {[%emt 0:04:44]} (11... g4 $142 12. Nh4 O-O) 12. axb3 $11 {[%emt 0:00:19]} cxd4 {[%emt 0:01:49]} 13. exd4 {[%emt 0:00:12]} Bf5 {[%emt 0:00:39]} 14. b4 {[%emt 0:00:43]} O-O {[%emt 0:03:05]} 15. Bb5 {[%emt 0:04:22]} Rfc8 {[%emt 0:04:14]} (15... a5 $11) 16. O-O {[%emt 0:00:26]} (16. Nf1 $14 {should be considered.}) 16... a6 {[%emt 0:02:14]} 17. Ba4 {[%emt 0:00:34]} (17. Be2 $11) 17... b5 $17 {[%emt 0:03:51]} 18. Bb3 {[%emt 0:01:17]} e6 {[%emt 0:01:15]} 19. Ra2 {[%emt 0:01:06]} a5 {[%emt 0:05:00]} 20. bxa5 {[%emt 0:00:37]} Rxa5 {[%emt 0:00:29]} (20... Nxa5 $2 21. Rfa1 $18) 21. Rxa5 {[%emt 0:05:41]} Nxa5 {[%emt 0:00:20]} 22. Ra1 {[%emt 0:00:22] [#]} Nxb3 {[%emt 0:09:19]} (22... Nc4 $142 $1 {[%cal Rc4b2]} 23. Bxc4 bxc4) 23. Nxb3 {[%emt 0:00:06] [#]} b4 $1 {[%emt 0:00:57]} 24. Nc5 {[%emt 0:01:15]} bxc3 {[%emt 0:01:20]} 25. bxc3 {[%emt 0:01:16]} g4 {[%emt 0:19:43]} 26. Nh4 {[%emt 0:04:18]} Bh7 {[%emt 0:02:47]} 27. f4 {[%emt 0:02:01][%cal Of4f5]} gxf3 {[%emt 0:04:45]} (27... Bf6 $17 28. Ra7 Bd8) 28. Nxf3 {[%emt 0:02:06] [#]} e5 {[%emt 0:03:41]} 29. Ra5 $11 {[%emt 0:03:20]} e4 {[%emt 0:04:29]} 30. Ne1 {[%emt 0:03:26]} Bf5 {[%emt 0:03:28]} 31. Nc2 {[%emt 0:01:20]} Rb8 {[%emt 0:02:07]} 32. Nb4 $2 {[%emt 0:01:37][%mdl 8192] [#]} (32. Ra6 $11) 32... Bxd4+ $1 $19 {[%emt 0:00:53][%mdl 512]} 33. cxd4 {[%emt 0:01:50]} Rxb4 {[%emt 0:00:11][%mdl 4096] Endgame KRB-KRN. Black is a pawn up.} 34. Ra4 {[%emt 0:00:48]} Rb1+ {[%emt 0:01:09]} 35. Kf2 {[%emt 0:00:31]} Rb2+ {[%emt 0:00:07]} 36. Kf1 {[%emt 0:00:51]} Kg7 {[%emt 0:00:43]} 37. Na6 {[%emt 0:01:48]} e3 {[%emt 0:03:21]} 38. Nc5 {[%emt 0:03:52] Repels Bd3+} Bg4 {[%emt 0:01:56]} 39. Ra1 {[%emt 0:00:32] Repels Rb1+} Rd2 {[%emt 0:01:17]} 40. Re1 {[%emt 0:05:08]} e2+ {[%emt 0:01:13]} ({Less strong is} 40... Rxd4 41. Rxe3 Rd1+ 42. Kf2 $17) 41. Kf2 {[%emt 0:00:03]} Rxd4 {[%emt 0:00:12] Hoping for ...Rd1.} 42. Nb3 {[%emt 0:00:11]} Rd1 {[%emt 0:01:52]} 43. Nc1 {[%emt 0:00:14]} d4 {[%emt 0:01:45]} 44. Nxe2 {[%emt 0:02:40]} Rxe1 {[%emt 0:00:11]} 45. Kxe1 {[%emt 0:00:04]} Bxe2 {[%emt 0:00:07]} 46. Kxe2 {[%emt 0:00:03]} Kf6 {[%emt 0:00:06]} 0-1

[Event "29th Bosnjaci Open 2025"]
[Site "Bosnjaci"]
[Date "2025.01.05"]
[Round "4.1"]
[White "Saric, Ante"]
[Black "Kovacevic, Blazimir"]
[Result "1/2-1/2"]
[ECO "D94"]
[WhiteElo "2483"]
[BlackElo "2379"]
[Annotator "TA"]
[PlyCount "180"]
[EventDate "2025.01.04"]
[EventType "swiss"]
[EventCountry "CRO"]
[SourceTitle "playchess.com"]
[Source "ChessBase"]
[SourceQuality "1"]
[TimeControl "5400+30"]

{[%evp 59,180,16,59,13,12,8,41,42,43,22,19,18,60,31,56,20,16,23,72,72,72,72,72,72,72,72,72,72,72,0,0,0,0,0,0,0,0,0,0,0,0,0,0,0,0,0,0,0,0,0,0,0,0,0,0,0,0,0,0,0,0,0,0,0,0,0,0,0,0,0,0,0,0,0,0,0,0,0,0,0,0,0,0,0,0,0,0,0,0,0,0,0,0,0,0,0,0,0,0,0,0,0,0,0,0,0,0,0,0,0,0,0,0,0,0,0,0,0,0,0,0,0,0]} 1. Nf3 {[%emt 0:00:04]} d5 {[%emt 0:00:07]} 2. e3 {[%emt 0:01:18]} Nf6 {[%emt 0:01:58]} 3. c4 {[%emt 0:00:06]} c6 {[%emt 0:00:07]} 4. Nc3 {[%emt 0:00:27]} g6 {[%emt 0:00:07]} 5. b3 {[%emt 0:03:36]} Bg7 {[%emt 0:00:40]} 6. Bb2 {[%emt 0:00:29]} O-O {[%emt 0:01:46]} 7. d4 {[%emt 0:04:28]} Bf5 {[%emt 0:13:03]} 8. Bd3 {[%emt 0:04:11]} Bxd3 {[%emt 0:01:43]} 9. Qxd3 {[%emt 0:00:06]} Nbd7 {[%emt 0:02:03]} 10. O-O {[%emt 0:00:24]} e6 {[%emt 0:02:11]} 11. e4 {[%emt 0:05:27]} dxe4 {[%emt 0:02:53]} 12. Nxe4 {[%emt 0:01:12]} Nxe4 {[%emt 0:00:04]} 13. Qxe4 {[%emt 0:00:04]} Qc7 {[%emt 0:03:43]} 14. Rfe1 {[%emt 0:11:24]} a5 {[%emt 0:04:13]} 15. Rad1 {[%emt 0:07:57]} a4 {[%emt 0:07:00]} 16. Qb1 {[%emt 0:00:39]} axb3 {[%emt 0:00:24]} 17. axb3 {[%emt 0:00:02]} Rfe8 {[%emt 0:11:34]} 18. h3 {[%emt 0:07:43]} b5 {[%emt 0:12:16]} 19. cxb5 {[%emt 0:02:11]} cxb5 {[%emt 0:00:05]} 20. d5 {[%emt 0:00:06]} exd5 {[%emt 0:00:43]} 21. Rxe8+ {[%emt 0:04:35]} Rxe8 {[%emt 0:00:05]} 22. Bxg7 {[%emt 0:00:05]} Kxg7 {[%emt 0:00:04]} 23. Rxd5 {[%emt 0:00:07]} b4 {[%emt 0:08:38]} 24. Qd1 {[%emt 0:05:28]} Nf6 {[%emt 0:01:20]} 25. Rd4 {[%emt 0:00:22]} Qc3 {[%emt 0:01:46]} 26. Rc4 {[%emt 0:01:33]} Qb2 {[%emt 0:03:08]} 27. Rxb4 {[%emt 0:00:22]} Re2 {[%emt 0:05:57]} 28. Qd4 {[%emt 0:02:26]} Qc1+ {[%emt 0:02:25]} 29. Kh2 {[%emt 0:00:40]} Re4 {[%emt 0:00:19]} 30. Qd6 {[%emt 0:04:37]} Re6 {[%emt 0:09:48]} 31. Qf4 {[%emt 0:02:59]} (31. Qd3 $14) 31... Qxf4+ $1 $11 {[%emt 0:01:40]} 32. Rxf4 {[%emt 0:00:03]} Ne4 {[%emt 0:01:10]} 33. Nd4 {[%emt 0:01:37]} Re8 {[%emt 0:00:13]} 34. g4 {[%emt 0:06:04]} Nc5 {[%emt 0:00:12]} 35. Rf3 {[%emt 0:02:13]} Rd8 {[%emt 0:00:45]} 36. Nc6 $1 {[%emt 0:00:45]} Rd6 {[%emt 0:00:25]} 37. b4 {[%emt 0:08:17]} Rxc6 {[%emt 0:00:05]} 38. Rc3 {[%emt 0:00:06]} Rf6 {[%emt 0:00:06]} (38... Kf6 $1 $11 {feels stronger.}) 39. bxc5 $16 {[%emt 0:00:03]} Rxf2+ {[%emt 0:00:06]} 40. Kg3 {[%emt 0:00:02]} Ra2 {[%emt 0:00:23]} 41. c6 {[%emt 0:00:15]} Ra8 {[%emt 0:00:05]} 42. Kf4 {[%emt 0:01:19]} Kf6 {[%emt 0:00:27]} 43. c7 {[%emt 0:00:13]} Rc8 {[%emt 0:00:14]} 44. Rc6+ {[%emt 0:02:28]} (44. Rc1 $16) 44... Ke7 $11 {[%emt 0:00:05]} 45. Kg5 {[%emt 0:01:51]} (45. g5 $5 Kd7 $8 46. Rc4 $11) 45... Kd7 {[%emt 0:02:47]} 46. Rc4 {[%emt 0:01:32]} (46. Rc3 $5 f5 $8 47. gxf5 gxf5 48. Rd3+ (48. Kxf5 Rxc7 49. Re3 Rc5+ 50. Kg4 h5+ 51. Kf3 Rc6 $11) 48... Kxc7 49. Kxf5 $16) 46... f5 $1 {[%emt 0:00:14]} (46... Rxc7 $2 {perishes.} 47. Rxc7+ Kxc7 48. Kf6 $18) 47. gxf5 {[%emt 0:01:09]} gxf5 {[%emt 0:00:05]} 48. Rh4 {[%emt 0:00:39]} (48. Kxf5 Rxc7 49. Ra4 Ke7) 48... Kxc7 {[%emt 0:01:55]} 49. Kxf5 {[%emt 0:01:02]} Kd6 {[%emt 0:00:33]} 50. Rh6+ {[%emt 0:00:53]} Kd5 {[%emt 0:00:05]} 51. Rxh7 {[%emt 0:00:25]} Rf8+ {[%emt 0:01:28]} 52. Kg6 {[%emt 0:00:08]} Ke6 {[%emt 0:00:42]} 53. Ra7 {[%emt 0:02:12]} Rg8+ {[%emt 0:00:46]} 54. Kh7 {[%emt 0:00:16]} Rg3 {[%emt 0:01:01]} 55. h4 {[%emt 0:00:02]} Rh3 {[%emt 0:01:10]} 56. Ra4 {[%emt 0:00:02]} Kf5 {[%emt 0:00:42]} 57. Kh6 {[%emt 0:00:31]} Kf6 {[%emt 0:00:37]} 58. Rf4+ {[%emt 0:02:03]} Ke5 {[%emt 0:00:09]} 59. Rg4 {[%emt 0:00:09]} Kf6 {[%emt 0:00:16]} 60. h5 {[%emt 0:00:13]} Kf7 {[%emt 0:00:43]} 61. Rg7+ {[%emt 0:00:22]} Kf6 {[%emt 0:00:44]} 62. Ra7 {[%emt 0:01:09]} Rh1 {[%emt 0:00:18]} 63. Ra5 {[%emt 0:00:15]} Rg1 {[%emt 0:00:45]} 64. Ra7 {[%emt 0:04:05]} Rh1 {[%emt 0:00:21]} 65. Rb7 {[%emt 0:00:08]} Rh2 {[%emt 0:00:04]} 66. Rd7 {[%emt 0:02:14]} Rh1 {[%emt 0:00:05]} 67. Rc7 {[%emt 0:01:09]} Rh2 {[%emt 0:00:04]} 68. Rc5 {[%emt 0:00:46]} Rg2 {[%emt 0:00:05]} 69. Rc6+ {[%emt 0:00:47]} Kf7 {[%emt 0:00:06]} 70. Rg6 {[%emt 0:00:30]} Rh2 {[%emt 0:00:20]} 71. Rg1 {[%emt 0:00:31]} Rh3 {[%emt 0:00:10]} 72. Rg7+ {[%emt 0:00:28]} Kf6 {[%emt 0:00:14]} 73. Rg5 {[%emt 0:00:07]} Rh1 {[%emt 0:00:12]} 74. Rb5 {[%emt 0:00:52]} Kf7 {[%emt 0:00:42]} 75. Kh7 {[%emt 0:00:12]} Rg1 {[%emt 0:00:23]} 76. Rf5+ {[%emt 0:00:17]} Ke7 {[%emt 0:00:21]} 77. h6 {[%emt 0:00:19]} Rg2 {[%emt 0:00:12]} 78. Rf1 {[%emt 0:01:40]} Rg3 {[%emt 0:00:04]} 79. Ra1 {[%emt 0:00:48]} Kf7 {[%emt 0:00:23]} 80. Rf1+ {[%emt 0:01:03]} Ke7 {[%emt 0:00:04]} 81. Kh8 {[%emt 0:00:15]} Rg6 {[%emt 0:00:38]} 82. Rh1 {[%emt 0:01:03]} Kf7 {[%emt 0:00:17]} 83. h7 {[%emt 0:00:37]} Rg2 {[%emt 0:00:08]} 84. Rf1+ {[%emt 0:00:11]} Ke7 {[%emt 0:00:04]} 85. Ra1 {[%emt 0:00:08]} Kf7 {[%emt 0:00:07]} 86. Ra7+ {[%emt 0:00:13]} Kf8 {[%emt 0:00:10]} 87. Ra8+ {[%emt 0:00:06]} Kf7 {[%emt 0:00:04]} 88. Rg8 {[%emt 0:00:15]} Rf2 {[%emt 0:01:41]} 89. Rg7+ {[%emt 0:01:00]} Kf8 {[%emt 0:00:05]} 90. Rg1 {[%emt 0:00:37]} Rf3 {[%emt 0:00:10]} 1/2-1/2

[Event "29th Bosnjaci Open 2025"]
[Site "Bosnjaci"]
[Date "2025.01.05"]
[Round "4.2"]
[White "Muratovic, Efim"]
[Black "Culum, Sanjin"]
[Result "1/2-1/2"]
[ECO "D02"]
[WhiteElo "2322"]
[BlackElo "2446"]
[Annotator "TA"]
[PlyCount "34"]
[EventDate "2025.01.04"]
[EventType "swiss"]
[EventCountry "CRO"]
[SourceTitle "playchess.com"]
[Source "ChessBase"]
[SourceQuality "1"]
[TimeControl "5400+30"]

{[%evp 9,34,-6,16,9,4,4,15,0,0,0,-7,0,0,6,0,5,10,13,6,13,7,3,80,65,119,44,104]} 1. Nf3 {[%emt 0:00:25]} Nf6 {[%emt 0:00:06]} 2. d4 {[%emt 0:01:28]} d5 {[%emt 0:00:09]} 3. Bf4 {[%emt 0:01:12]} c5 {[%emt 0:00:26]} 4. e3 {[%emt 0:00:43]} Nc6 {[%emt 0:00:07]} 5. Nbd2 {[%emt 0:05:01]} Bg4 {[%emt 0:00:05]} 6. Be2 {[%emt 0:01:41]} e6 {[%emt 0:02:11]} 7. O-O {[%emt 0:03:02]} Bd6 {[%emt 0:06:28]} 8. Bxd6 {[%emt 0:06:01]} Qxd6 {[%emt 0:00:06]} 9. dxc5 {[%emt 0:06:57]} Qxc5 {[%emt 0:00:11]} 10. c4 {[%emt 0:03:34]} dxc4 {[%emt 0:10:42]} 11. Rc1 {[%emt 0:03:30]} O-O {[%emt 0:12:45]} 12. Nxc4 {[%emt 0:02:46][%cal Oc4e5]} Rfd8 {[%emt 0:10:52]} 13. Qb3 {[%emt 0:06:24]} Qe7 {[%emt 0:01:11]} 14. h3 {[%emt 0:05:30]} Bh5 {[%emt 0:00:46]} 15. Rfd1 {[%emt 0:01:17]} Rd5 {[%emt 0:02:54]} (15... h6 $11) 16. Rxd5 $16 {[%emt 0:08:54]} exd5 {[%emt 0:00:53] [#]} (16... Nxd5 $14 17. g4 Bg6) 17. Ncd2 {[%emt 0:00:13]} ({White should play} 17. Nd6 $1 $16) 17... Rd8 {[%emt 0:11:43]} (17... Bxf3 $14 18. Nxf3 (18. Bxf3 Rd8 $14) 18... Rc8) 1/2-1/2

[Event "29th Bosnjaci Open 2025"]
[Site "Bosnjaci"]
[Date "2025.01.05"]
[Round "4.3"]
[White "Hadzovic, Amir"]
[Black "Zaja, Ivan"]
[Result "1/2-1/2"]
[ECO "A04"]
[WhiteElo "2316"]
[BlackElo "2418"]
[Annotator "TA"]
[PlyCount "96"]
[EventDate "2025.01.04"]
[EventType "swiss"]
[EventCountry "CRO"]
[SourceTitle "playchess.com"]
[Source "ChessBase"]
[SourceQuality "1"]
[TimeControl "5400+30"]

{[%evp 18,96,8,-17,-29,-27,-20,-25,0,0,0,0,0,-1,0,0,41,39,44,25,56,-38,-31,-28,-39,-57,-46,-38,-38,-7,-18,-245,-259,-254,-253,-260,-244,-260,-243,-248,-234,-285,-279,-257,-247,-226,-34,-41,0,-39,-7,-104,-66,-60,-49,-165,-152,-172,-17,-50,-12,-206,0,0,0,0,0,0,0,0,0,0,0,0,0,0,0,0,0,0,0]} 1. e4 {[%emt 0:00:03]} e6 {[%emt 0:00:27]} 2. d3 {[%emt 0:00:09]} c5 {[%emt 0:00:14]} 3. g3 {[%emt 0:00:17]} Nc6 {[%emt 0:00:44]} 4. Bg2 {[%emt 0:00:06]} g6 {[%emt 0:00:12]} 5. Nf3 {[%emt 0:00:45]} Bg7 {[%emt 0:00:08]} 6. O-O {[%emt 0:00:12]} Nge7 {[%emt 0:00:14]} 7. c3 {[%emt 0:00:28]} O-O {[%emt 0:04:24] 7...0-0 has become a bit dusty these days.} 8. Re1 {[%emt 0:00:21]} e5 {[%emt 0:01:43]} 9. Be3 {[%emt 0:01:01] A04: Unusual lines after 1 Nf3 and King's Indian Attack.} d6 {[%emt 0:02:42]} 10. d4 {[%emt 0:00:28]} exd4 $1 {[%emt 0:03:37]} 11. cxd4 {[%emt 0:01:09]} Bg4 {[%emt 0:00:05]} 12. dxc5 {[%emt 0:11:08]} Bxf3 {[%emt 0:03:35]} (12... Bxb2 13. Nbd2 Bxa1 14. Qxa1 dxc5 15. Bxc5) 13. Bxf3 {[%emt 0:01:02]} Bxb2 {[%emt 0:00:16]} 14. Nd2 $1 {[%emt 0:00:37]} Bxa1 {[%emt 0:00:44]} 15. Qxa1 {[%emt 0:00:03]} dxc5 {[%emt 0:00:11]} 16. Nb3 $1 {[%emt 0:00:27]} f6 $146 {[%emt 0:09:32]} ({Predecessor:} 16... Qc7 17. Bh6 Qe5 18. Nxc5 Nd4 {0-1 Allaert,D (2136)-Hamitevici,V (2457) Bergamo op 13th 2014 (3)}) 17. Nxc5 {[%emt 0:01:53]} Qc8 {[%emt 0:03:28]} 18. Bd1 {[%emt 0:03:29]} Na5 {[%emt 0:00:41]} 19. Ba4 {[%emt 0:05:10]} (19. Bd4 $1 $14) 19... Nec6 $15 {[%emt 0:01:43]} 20. Rd1 $1 {[%emt 0:02:10]} Rf7 $1 {[%emt 0:01:17]} 21. Rd6 {[%emt 0:09:26]} Qf8 {[%emt 0:22:25]} 22. Rxf6 $1 {[%emt 0:21:39]} Qg7 $1 {[%emt 0:00:03]} (22... Rxf6 $2 23. Nd7 $18) 23. Bg5 $1 {[%emt 0:00:07]} (23. e5 $2 Nxe5 24. Ne4 (24. Rxf7 $2 Nf3+ 25. Kg2 Qxa1 $19) 24... Rxf6 $19) 23... Re8 {[%emt 0:00:25]} 24. e5 $2 {[%emt 0:05:05]} (24. Ne6 $2 Rxe6 25. e5 Nxe5 $19 (25... Rxe5 $2 26. Rxf7 Qxf7 27. Be3 $19)) (24. Nxb7 $1 $11 Rxf6 (24... Rxe4 $2 25. Nd6 $18) 25. Nxa5) 24... Rxe5 $19 {[%emt 0:01:46]} 25. Rxf7 {[%emt 0:00:08]} (25. Ne6 $2 Rxe6 26. Bh4 Rexf6 $19) 25... Qxf7 {[%emt 0:00:55]} 26. Be3 {[%emt 0:00:12]} Qc4 {[%emt 0:05:24]} 27. Bxc6 {[%emt 0:11:35]} Nxc6 {[%emt 0:03:44]} 28. Nd7 {[%emt 0:00:04]} Rf5 {[%emt 0:05:01]} 29. Nf6+ {[%emt 0:00:18]} Kf7 {[%emt 0:00:11]} 30. Nxh7 {[%emt 0:00:31]} Ne5 {[%emt 0:00:22]} 31. h4 {[%emt 0:15:59]} b6 $2 {[%emt 0:21:50]} (31... Nf3+ $19 32. Kg2 Qc6) 32. Ng5+ $15 {[%emt 0:00:14]} Ke7 {[%emt 0:00:10]} 33. a4 {[%emt 0:01:28]} Qd5 {[%emt 0:01:29]} 34. Qc1 {[%emt 0:01:29]} (34. Bf4 $11 {keeps the balance.}) 34... Qc6 {[%emt 0:01:13]} 35. Qa3+ {[%emt 0:00:48]} Kd7 {[%emt 0:00:24]} 36. Qa1 {[%emt 0:01:04]} (36. Bf4 $15) 36... Kc8 $19 {[%emt 0:01:45]} 37. Qd1 {[%emt 0:03:54]} Nf3+ $2 {[%emt 0:01:24]} (37... Rf8 $19 {Threatens to win with ...Rd8.} 38. Bf4 Rd8) 38. Nxf3 $11 {[%emt 0:00:33]} Qxf3 {[%emt 0:00:01]} 39. Qd3 $2 {[%emt 0:03:48] [#]} (39. Qd6 $11 {and White is okay.}) 39... Rd5 $2 {[%emt 0:04:21]} (39... Qc6 $1 $19 {[%cal Of5a5] Hoping for ...Ra5!} 40. Qa6+ Kb8 41. Bf4+ Ka8) 40. Qa6+ $1 $11 {[%emt 0:00:07]} (40. Qxg6 $2 Rd1+ 41. Kh2 Qh1#) 40... Kd8 {[%emt 0:00:28]} 41. Bg5+ $1 {[%emt 0:00:10]} Ke8 {[%emt 0:00:25]} 42. Qc8+ {[%emt 0:00:09]} (42. Qxa7 $2 Rd1+ 43. Kh2 Qh1#) 42... Kf7 {[%emt 0:00:11]} 43. Qb7+ {[%emt 0:01:05]} Kg8 {[%emt 0:00:30]} 44. Qa8+ {[%emt 0:00:13]} (44. Qxa7 $2 {is a self mate.} Rd1+ 45. Kh2 Qh1#) 44... Kf7 {[%emt 0:00:12]} 45. Qxa7+ {[%emt 0:01:06]} Kg8 {[%emt 0:00:15]} 46. Qa8+ {[%emt 0:00:05]} (46. Qxb6 $2 {gets mated.} Rd1+ 47. Kh2 Qh1#) 46... Kf7 {[%emt 0:00:29]} 47. Qb7+ {[%emt 0:00:05]} Kg8 {[%emt 0:00:16]} 48. Qa8+ {[%emt 0:00:06]} (48. Qxb6 $2 {leads to mate.} Rd1+ 49. Kh2 Qh1#) 48... Kf7 {[%emt 0:00:40]} 1/2-1/2